Cogmind - Beta 11.1 @@@ ROGUE MODE // 2022.06.13 @ 11:56:47 Player: ChromeKnight Result: Self-destructed Performance ------------- Evolutions (1) 500 Regions Visited (3) 600 Robots Destroyed (35) 175 Value Destroyed (899) 899 Prototype IDs (2) 40 Alien Tech Used (0) 0 Bonus (0) 0 TOTAL SCORE: 2214 Bonus ------- None Cogmind --------- Core Integrity 268/400 Matter 275/300 Energy 280/280 System Corruption 0% Temperature Cool (0) Movement Treading (160) Location -9/Materials Parts ------- > --- POWER (1) -------- Cooled Ion Engine > --- PROPULSION (2) --- Light Treads Light Treads > --- UTILITY (4) ------ Large Storage Unit Signal Interpreter Power Shielding Propulsion Shielding > --- WEAPON (2) ------- Particle Gun Light Assault Rifle > --- INVENTORY (15) --- Cooled Ion Engine Light Treads Improved VTOL Module Improved VTOL Module Core Shielding Weapon Shielding Light Armor Plating Light Armor Plating Hacking Suite Hacking Suite Assault Rifle Mini Grenade Launcher Mini Grenade Launcher Datajack Datajack Peak State ------------ > --- POWER ------------ Cooled Ion Engine > --- PROPULSION ------- Light Treads Improved VTOL Module > --- UTILITY ---------- Large Storage Unit Signal Interpreter Power Shielding Propulsion Shielding > --- WEAPON ----------- Beam Rifle Light Assault Rifle > --- INVENTORY -------- Cooled Ion Engine Sensor Array Weapon Shielding Light Armor Plating Light Armor Plating Light Armor Plating Hacking Suite Hacking Suite Particle Gun Assault Rifle Mini Grenade Launcher Mini Grenade Launcher Datajack Datajack [Rating: 17] Favorites ----------- Power Light Ion Engine Engine Light Ion Engine Propulsion Light Treads Treads Light Treads Flight Unit Improved VTOL Module Utility Large Storage Unit Device Improved Heat Sink Storage Large Storage Unit Processor Signal Interpreter Protection Propulsion Shielding Weapon Light Assault Rifle Energy Gun Small Laser Ballistic Gun Light Assault Rifle Build | -11 -10 -10 -9 ------- Run | Scr Mat Min Mat Slots Evolved 2 | . . . 2 Power . | . . . . Propulsion . | . . . . Utility 2 | . . . 2 Weapon . | . . . . Parts Attached 30 | 6 8 4 12 Power 4 | 1 1 1 1 Engine 4 | 1 1 1 1 Core . | . . . . Reactor . | . . . . Propulsion 6 | 2 . . 4 Treads 5 | 2 . . 3 Leg . | . . . . Wheel . | . . . . Hover . | . . . . Flight 1 | . . . 1 Utility 9 | 1 4 . 4 Device 2 | . 2 . . Storage 2 | 1 1 . . Processor 2 | . . . 2 Hackware . | . . . . Protection 3 | . 1 . 2 Artifact . | . . . . Weapon 11 | 2 3 3 3 Energy Gun 5 | 1 2 . 2 Energy Cannon . | . . . . Ballistic Gun 6 | 1 1 3 1 Ballistic Cannon . | . . . . Launcher . | . . . . Special Weapon . | . . . . Impact Weapon . | . . . . Slashing Weapon . | . . . . Piercing Weapon . | . . . . Special Melee Weapon . | . . . . Unidentified Prototypes 2 | . . . 2 Parts Lost 4 | . 1 . 3 Power 1 | . 1 . . Propulsion 2 | . . . 2 Utility . | . . . . Weapon 1 | . . . 1 Highest Loss Streak 1 | . 1 . 1 To Critical Strikes . | . . . . Average Slot Usage (%) 97 | . 97 100 95 Engine 12 | . 13 14 11 Treads 24 | . 28 28 18 Device 4 | . 12 . . Storage 12 | . 14 14 11 Processor 3 | . . . 10 Protection 12 | . . 14 21 Energy Gun 13 | . 26 5 7 Ballistic Gun 12 | . 1 22 14 Naked Turns . | . . . . Heaviest Build 34 | 11 26 26 34 Greatest Support 40 | 40 40 40 40 Greatest Overweight (x) 10 | 2 . . 10 Average Overweight (x) . | . . . . Largest Inventory Capacity 15 | 8 15 15 15 Average Capacity 14 | 7 13 15 15 Most Carried 15 | 1 15 15 15 Average Carried 12 | . 9 14 14 Final Capacity 15 | 8 15 15 15 Final Carried 15 | 1 14 15 15 Class Distribution -------------------- 81% | Mutant 18% | Scavenger-Mutant Dominant Class ---------------- Mutant | -10/Materials Mutant | -10/Mines Scavenger-Mutant | -9/Materials Resources | -11 -10 -10 -9 ----------- Run | Scr Mat Min Mat Matter Collected 597 | 266 75 80 176 Remotely . | . . . . Salvage Created 1212 | 79 602 61 470 Parts 78 | 2 41 6 29 Haulers Intercepted . | . . . . Recyclers Shooed 2 | . 1 . 1 Parts Field Recycled . | . . . . Retrieved Matter . | . . . . Parts Self-Destructed . | . . . . Prevented . | . . . . Kills | -11 -10 -10 -9 ------- Run | Scr Mat Min Mat Combat Hostiles Destroyed 27 | . 12 5 10 Guns 27 | . 12 5 10 Classes Destroyed 11 | 1 7 1 2 Worker 2 | . 2 . . Builder 1 | . 1 . . Tunneler 1 | . 1 . . Recycler 1 | 1 . . . Operator 2 | . 2 . . Watcher 3 | . 3 . . Swarmer 6 | . 3 3 . Grunt 14 | . 9 . 5 Duelist 1 | . . . 1 Sentry 4 | . . . 4 Assembled 2 | . . 2 . Best Kill Streak 3 | 1 3 3 3 Combat Bots Only 3 | . 3 3 3 Max Kills in Single Turn 2 | 1 1 2 1 Gunslinging 1 | . . 1 . Exploded . | . . . . Melee . | . . . . Uniques/NPCs Destroyed . | . . . . Combat | -11 -10 -10 -9 -------- Run | Scr Mat Min Mat Damage Taken 1228 | . 492 174 562 Core 271 | . 74 65 132 Absorbed by Shields . | . . . . Redirected to Shielding 70 | . . 3 67 Core Remaining (%) 72 | 100 . 44 . Volleys Fired 128 | 2 63 9 54 Largest 2 | 2 2 2 2 Hottest 85 | 60 80 60 85 Shots Fired 256 | 4 126 18 108 Gun 256 | 4 126 18 108 Cannon . | . . . . Launcher . | . . . . Special . | . . . . Kinetic 90 | 2 10 10 68 Thermal 166 | 2 116 8 40 Explosive . | . . . . Electromagnetic . | . . . . Robot Hit Streak 12 | 3 12 7 10 Robot Miss Streak 5 | 1 2 2 5 Penetration Max . | . . . . Secondary Targets 1 | . . 1 . Max Gunslinging Chain 1 | . . 1 . Shots Hit Robots 169 | 3 88 13 65 Core Hits 67 | 2 35 8 22 Critical Kills . | . . . . Critical Parts Destroyed . | . . . . Critical Strikes . | . . . . Melee Attacks . | . . . . Impact . | . . . . Slashing . | . . . . Piercing . | . . . . Sneak Attacks . | . . . . Combat Hostiles . | . . . . Follow-up Attacks . | . . . . Damage Inflicted 1903 | 33 1020 131 719 Guns 1903 | 33 1020 131 719 Cannons . | . . . . Explosions . | . . . . Melee . | . . . . Ramming . | . . . . Kinetic 631 | 23 118 64 426 Thermal 1272 | 10 902 67 293 Explosive . | . . . . Electromagnetic . | . . . . Impact . | . . . . Slashing . | . . . . Piercing . | . . . . Highest Corruption . | . . . . Average Corruption . | . . . . Corruption Purged . | . . . . Corruption Blocked . | . . . . Overload Shots . | . . . . Overflow Damage . | . . . . Projectiles . | . . . . Explosions . | . . . . Melee . | . . . . Knockbacks . | . . . . Impact . | . . . . Kinetic . | . . . . Secondary . | . . . . Self-Inflicted Damage . | . . . . Shots . | . . . . Rammed . | . . . . Targets Rammed . | . . . . Kicked . | . . . . Crushed . | . . . . Highest Temperature 63 | . 30 20 63 Average Temperature 19 | . 13 15 20 Received Heat Transfer 378 | . 225 . 153 Siege Activations . | . . . . Robots Corrupted . | . . . . Combat Hostiles . | . . . . Parts Fried . | . . . . Impact Corruptions . | . . . . Robots Melted . | . . . . Combat Hostiles . | . . . . Parts Melted 4 | . 2 . 2 Heat Transferred 2940 | 25 2025 150 740 Parts Sabotaged . | . . . . Parts Stolen . | . . . . Parts Stripped . | . . . . Power Chain Reactions . | . . . . Missiles Intercepted . | . . . . Alert | -11 -10 -10 -9 ------- Run | Scr Mat Min Mat Peak Influence 175 | 5 172 119 175 Initial 49 | . 3 49 . Average 76 | . 89 69 76 Maximum Alert Level . | . . . . Low Security (%) 100 | 100 100 100 100 Level 1 . | . . . . Level 2 . | . . . . Level 3 . | . . . . Level 4 . | . . . . Level 5 . | . . . . High Security . | . . . . Max Security . | . . . . Squads Dispatched 3 | . 3 . . Investigation 1 | . 1 . . Extermination . | . . . . Reinforcement 2 | . 2 . . Assault . | . . . . Garrison . | . . . . Intercept . | . . . . Searches Triggered . | . . . . Construction Impeded . | . . . . Haulers Reinforced . | . . . . Active Scanning Responses . | . . . . Cargo Convoy Interrupts . | . . . . Stealth | -11 -10 -10 -9 --------- Run | Scr Mat Min Mat Distress Signals 4 | . 2 . 2 Communications Jammed . | . . . . Distress Signals . | . . . . Times Spotted 50 | . 22 8 20 Peak Tracking Total 5 | . 3 3 5 Tactical Retreats 3 | . . 2 1 Traps | -11 -10 -10 -9 ------- Run | Scr Mat Min Mat Traps Triggered 1 | . 1 . . Indirectly . | . . . . Trap Hack Attempts . | . . . . Triggered . | . . . . Disarmed . | . . . . Reprogrammed . | . . . . Reused . | . . . . Traps Extracted . | . . . . Installed . | . . . . Triggered . | . . . . Machines | -11 -10 -10 -9 ---------- Run | Scr Mat Min Mat Machines Disabled 1 | . . . 1 Max in Single Turn 1 | . . . 1 Machines Sabotaged . | . . . . Garrisons Compromised . | . . . . Overloaded Fab Kills . | . . . . Hacking | -11 -10 -10 -9 --------- Run | Scr Mat Min Mat Machines Accessed 6 | . 2 . 4 Terminals 5 | . 2 . 3 Fabricators . | . . . . Repair Stations . | . . . . Recycling Units . | . . . . Scanalyzers 1 | . . . 1 Garrison Access . | . . . . Total Hacks 16 | . 7 . 9 Successful 11 | . 4 . 7 Failed 5 | . 3 . 2 Catastrophic . | . . . . Database Lockouts . | . . . . Manual 11 | . 4 . 7 Terminals 14 | . 7 . 7 Fabricators . | . . . . Repair Stations . | . . . . Recycling Units . | . . . . Scanalyzers 2 | . . . 2 Garrison Access . | . . . . Terminal Hacks 2 | . 1 . 1 Robot Analysis 1 | . 1 . . Branch Access Points 1 | . . . 1 Fabricator Hacks . | . . . . Repair Station Hacks . | . . . . Recycling Unit Hacks . | . . . . Scanalyzer 2 | . . . 2 Insert Component 1 | . . . 1 Analyze 1 | . . . 1 Garrison Access Hacks . | . . . . Unauthorized Hacks 7 | . 3 . 4 Terminals 7 | . 3 . 4 Botnet 5 | . 2 . 3 Operators 2 | . 1 . 1 Fabricators . | . . . . Repair Stations . | . . . . Recycling Units . | . . . . Scanalyzers . | . . . . Garrison Access . | . . . . Data Cores Recovered . | . . . . Used . | . . . . Hacking Detections 4 | . 2 . 2 Full Trace Events . | . . . . Feedback Events . | . . . . Feedback Blocked . | . . . . Robot Schematics Acquired . | . . . . Robots Built . | . . . . Authchips . | . . . . Time . | . . . . Total Robot Build Rating . | . . . . Part Schematics Acquired 1 | . . . 1 Parts Built . | . . . . Authchips . | . . . . Time . | . . . . Total Part Build Rating . | . . . . Parts Repaired . | . . . . Time . | . . . . Parts Recycled . | . . . . Recycled Matter . | . . . . Retrieved Matter . | . . . . Retrieved Components . | . . . . Parts Scanalyzed 1 | . . . 1 Part Schematics Acquired 1 | . . . 1 Parts Damaged . | . . . . Bothacking | -11 -10 -10 -9 ------------ Run | Scr Mat Min Mat Used RIF Installer . | . . . . Robots Hacked . | . . . . Non-combat . | . . . . Combat . | . . . . Robot Hacks Applied . | . . . . Relay Couplers Released . | . . . . Fabnet Peak Effective % . | . . . . Robots Rewired . | . . . . Allies Hacked . | . . . . Hacks Repelled . | . . . . Allies | -11 -10 -10 -9 -------- Run | Scr Mat Min Mat Total Allies . | . . . . Largest Group . | . . . . Highest-Rated Group . | . . . . Highest-Rated Ally . | . . . . Total Orders . | . . . . Ally Attacks . | . . . . Total Damage . | . . . . Kills . | . . . . Allies Corrupted . | . . . . Allies Melted . | . . . . Intel | -11 -10 -10 -9 ------- Run | Scr Mat Min Mat Robot Analysis Total 1 | . 1 . . Derelict Logs Recovered 1 | . . 1 . Drone Launches . | . . . . Drone Recoveries . | . . . . Exploration | -11 -10 -10 -9 ------------- Run | Scr Mat Min Mat Turns Passed 2770 | 80 904 817 969 Spaces Moved 1080 | 43 411 227 399 Core 11 | 10 . . 1 Treads 1069 | 33 411 227 398 Legs . | . . . . Wheels . | . . . . Hover . | . . . . Flight . | . . . . Fastest Speed 50 | 50 160 160 160 Average Speed 166 | 149 160 160 179 Slowest Speed 550 | 160 160 160 550 Overloaded Moves . | . . . . Propulsion Burnouts . | . . . . Robots Hopped . | . . . . Cave-ins Triggered . | . . . . Exploration Rate (%) 35 | 4 57 45 35 Regions Visited 3 Branch Regions 1 Pre-discovered Areas . | . . . . Known Exits Taken . | . . . . Unknown Exits Taken 3 | 1 1 1 . Scrap Searched 1 | . . 1 . Spaces Dug . | . . . . Terrain Destroyed . | . . . . Melee . | . . . . Projectile . | . . . . AOE . | . . . . Terrain Rammed . | . . . . Walls Destroyed . | . . . . Machines Disabled . | . . . . Actions | -11 -10 -10 -9 --------- Run | Scr Mat Min Mat Total 1807 | 52 534 665 556 Wait 519 | 1 29 423 66 Move 1077 | 42 410 226 399 Hop . | . . . . Pick Up 28 | 1 16 . 11 Fast Attach 18 | 6 3 1 8 Attach 3 | . 2 . 1 Detach 1 | . 1 . . Swap 9 | . 3 3 3 Drop 24 | . 7 3 14 Fire 128 | 2 63 9 54 Melee . | . . . . Ram . | . . . . Kick . | . . . . Crush . | . . . . Escape Stasis . | . . . . Rewire . | . . . . Trap . | . . . . Miscellaneous . | . . . . Route ------- -11/Scrapyard -10/Materials -10/Mines (discovered 2 exits: *Mat / Exi) -9/Materials (discovered 1 exit: Min) History --------- Turn | Location | Event 39 | -11/Scrapyard | Discovered new exit (range 14) 81 | -11/Scrapyard | Entered Materials 301 | -10/Materials | Build established: Mutant 859 | -10/Materials | Discovered new exit (range 10) 985 | -10/Materials | Entered Mines 986 | -10/Mines | Assembled infested the area 1014 | -10/Mines | Core integrity fell below 50% 1382 | -10/Mines | Identified exit to Exiles 1685 | -10/Mines | Discovered new exit (range 10) 1802 | -10/Mines | Entered Materials 1802 | -9/Materials | Evolved 2 slots: Utility x2 2547 | -9/Materials | Build established: Scavenger-Mutant 2770 | -9/Materials | Identified exit to Mines 2771 | -9/Materials | Self-destructed Last Messages --------------- 02739_ R-06 Scavenger collects Aluminum Leg. 02743_ R-06 Scavenger collects Ion Engine. 02745_ Beam Rifle destroyed. 02751_ Katana melted. 02751_ L-31 Rogue destroyed. 02761_ Acquired Core Shielding. 02764_ R-06 Scavenger collects Sml. Laser. 02765_ Discarded Signal Interpreter. 02767_ R-06 Scavenger collects Aluminum Leg. 02770_ Connecting with Terminal... >>Trojan(Botnet) Trojan loaded successfully. Testing... Terminal linked with 2 systems. Awaiting botnet instructions. >>Access(Branch) Found 1 branch access point: (48,49) Mines Map updated. 02770_ R-06 Scavenger collects Heat Sink. Map ----- +----------------------------------------------------+ | ?????????????????????# # """ #??# # | | ?????????????????????########### %""" #??# + | | ???????????????????????????????# #??# # | | ???????????????????????????????# #??# # | | ???????????????????????????????# """ #??# # | | ????????????????????????######## """ #??# # | | ????????????????????????# ! # """ #??# # | | ????????o???????????????# # """ #??# # | | ????????????????????????# + "" #??# # | | ????????????????????????# "T" # % #??# # | | ????????????????????????# """ # #??# # | | ????????????????????????# # #?## # | | ????????????????????????############### #?# | | ??????????????????????????# # #?# ! | | ???????????????????????????? """ ! # #?# | | ?????????????????????????????"""" + #?# | | ?????????????????????????????"""" # #?# | | ?????????????????????????????"""" # #?###^## | | ???????????>?????????????????""" ?# #???#^#? | | ???????????????????????????? ?# #???# #? | | ???????????????????????????#########??# #???# #? | | ?????????????????????########?????????# #???# #? | | ?????????????????????# #?????????# #???# #? | | ?????????????????????# "" ########### #???# #? | | ?????????????????????# "T ! # / #???# #? | | ?????????????????????# ""@ # """"" ## #???#%#? | | ?????????????????????# # """"" ## #####+## | | ?????????????????????# =# """"" ## # [ # | | ???????????????+#########r### ## %# # | | ??????????? %%%=# """"" ## + "" # | | ??????????? %+[""""" ## # S"" # | | ??????????? # """"" ## # "" # | | ???????????? ##/########## ## ## + # | | ?????????????????????????# ############ ######## | | ?????????????????????????#w#????????# #?????? | | ?????????????????????????# #????????#!! ==#?????? | | ?????????????????????????# #????????#!!====#?????? | | ?????????????????????????# #????????########?????? | | ?????????????????????????? #?????????????????????? | | ?????????????????????????? #?????????????????????? | | ?????????????????????????? #?????????????????????? | | ?????????????????????????? ??????????????????????? | | ?????????????????????????? ??????????????????????? | | ?????????????????????????? ??????????????????????? | | ?????????????????????????? ??????????????????????? | | ?????????????????????????????????????????????????? | | ?????????????????????????????????????????????????? | | ?????????????????????????????????????????????????? | | ?????????????????????????????????????????????????? | | ?????????????????????????????????????????????????? | +----------------------------------------------------+ Best States ------------- Heat Dissipation 39 Energy Generation 14 Energy Capacity 280 Matter Stores 300 Matter Capacity 300 Sight Range 16 Terrain Scan Density 10 Power Shielding 33 Propulsion Shielding 33 Evasion (%) 40 Recoil Reduction 2 Item Schematics ----------------- Hacking Suite | -9/Materials | Scanalyzed Robot Schematics ------------------ None Fabricated ------------ Nothing Alien Tech Used ----------------- None Achievements -------------- None Challenges ------------ None Game ------ Seed CentriumMicrowarpExoskeleton Manual? 0 Play Time 00:14:06 Cumulative 326.8 hours Start 2022.06.13 @ 11:46:25 End 2022.06.13 @ 11:56:47 Sessions 1 Manual Loads 0 Difficulty Rogue Special Mode None Game No. 580 Rogue 425 Adventurer 148 Explorer 7 Win Type - Total 11 Types 9/0/1/1/0/0/0/0/0 Lore% 74 Gallery% 87 Achievement% 67 Wizard Run 0 Options --------- ASCII 0 Keyboard 0 Movement Numpad Keybinds 0 Fullscreen 1 Font 18/SmallcapsGlow Map View 76x50 Tactical HUD 1 Map Filters NONE Filters NONE Steam 1 RUN: cb88ad5e-4e44-44a5-9d79-9b37774d608b